[Event "Lueneburger Schachfestival IM 2019"]
[Site "Lueneburg"]
[Date "2019.08.08"]
[Round "7.4"]
[White "Kahlert, Thomas"]
[Black "Pubantz, Jan"]
[Result "1/2-1/2"]
[ECO "D15"]
[WhiteElo "2152"]
[BlackElo "2214"]
[Annotator "NA"]
[PlyCount "80"]
[EventDate "2019.08.02"]
[EventType "tourn"]
[EventCountry "GER"]
[SourceTitle "playchess.com"]
[Source "ChessBase"]
[SourceQuality "1"]
[TimeControl "40/5400+30:1800+30"]

1. Nf3 {[%emt 0:00:00]} d5 {[%emt 0:00:00]} 2. d4 {[%emt 0:00:00]} Nf6 {[%emt 0:00:00]} 3. c4 {[%emt 0:00:00]} c6 {[%emt 0:00:15]} 4. Nc3 {[%emt 0:00:00]} a6 {[%emt 0:00:34]} 5. a4 {[%emt 0:01:04]} e6 {[%emt 0:02:31]} 6. Bg5 {[%emt 0:00:28]} Nbd7 {[%emt 0:00:47]} 7. e3 {[%emt 0:00:22]} Bb4 {[%emt 0:00:59]} 8. Nd2 {[%emt 0:06:55]} Qa5 {[%emt 0:01:49]} 9. Qc2 {[%emt 0:03:04]} dxc4 {[%emt 0:03:27]} 10. Bxf6 {[%emt 0:00:11]} Nxf6 {[%emt 0:00:22]} 11. Nxc4 {[%emt 0:01:23]} Qc7 {[%emt 0:01:40]} 12. Be2 {[%emt 0:00:48]} c5 {[%emt 0:20:53]} 13. Qb3 {[%emt 0:04:34]} O-O {[%emt 0:02:23]} 14. O-O {[%emt 0:06:04]} cxd4 {[%emt 0:01:15]} 15. Qxb4 {[%emt 0:02:40]} dxc3 {[%emt 0:00:15]} 16. Qxc3 {[%emt 0:11:39]} Bd7 {[%emt 0:05:06]} 17. Rfc1 {[%emt 0:06:14]} Rac8 {[%emt 0:01:37]} 18. Bf3 {[%emt 0:05:27]} Rfd8 {[%emt 0:14:14]} 19. Qe5 {[%emt 0:10:05]} Qxe5 {[%emt 0:06:41]} 20. Nxe5 {[%emt 0:00:06]} Rxc1+ {[%emt 0:02:08]} 21. Rxc1 {[%emt 0:00:13]} Bxa4 {[%emt 0:01:00]} 22. Bxb7 {[%emt 0:02:29]} Bb5 {[%emt 0:03:07]} 23. h3 {[%emt 0:02:14]} Ne8 {[%emt 0:00:57]} 24. Rc8 {[%emt 0:06:34]} Rxc8 {[%emt 0:02:12]} 25. Bxc8 {[%emt 0:00:06]} Kf8 {[%emt 0:03:00]} 26. Bd7 {[%emt 0:01:35]} Ke7 {[%emt 0:06:23]} 27. Bxb5 {[%emt 0:00:13]} axb5 {[%emt 0:00:06]} 28. Kf1 {[%emt 0:01:01]} Nd6 {[%emt 0:04:38]} 29. Ke2 {[%emt 0:04:11]} f6 {[%emt 0:00:52]} 30. Nd3 {[%emt 0:06:14]} e5 {[%emt 0:00:22]} 31. f3 {[%emt 0:04:21]} e4 {[%emt 0:04:03]} 32. Nc5 {[%emt 0:01:01]} f5 {[%emt 0:05:28]} 33. b3 {[%emt 0:06:18]} Kf6 {[%emt 0:01:00]} 34. f4 {[%emt 0:00:52]} Nc8 {[%emt 0:02:38]} 35. Kd2 {[%emt 0:02:07]} Nb6 {[%emt 0:01:54]} 36. Kc3 {[%emt 0:01:17]} Nd5+ {[%emt 0:00:42]} 37. Kd4 {[%emt 0:00:07]} Nb4 {[%emt 0:00:23]} 38. Kc3 {[%emt 0:02:14]} Nd5+ {[%emt 0:00:48]} 39. Kd4 {[%emt 0:00:18]} Nb4 {[%emt 0:00:50]} 40. Kc3 {[%emt 0:00:26]} Nd5+ {[%emt 0:02:02]} 1/2-1/2

[Event "Lueneburger Schachfestival IM 2019"]
[Site "Lueneburg"]
[Date "2019.08.08"]
[Round "7.5"]
[White "Schulze, Lara"]
[Black "Stork, Oliver"]
[Result "1/2-1/2"]
[ECO "B12"]
[WhiteElo "2253"]
[BlackElo "2322"]
[Annotator "NA"]
[PlyCount "159"]
[EventDate "2019.08.02"]
[EventType "tourn"]
[EventCountry "GER"]
[SourceTitle "playchess.com"]
[Source "ChessBase"]
[SourceQuality "1"]
[TimeControl "40/5400+30:1800+30"]

1. e4 {[%emt 0:00:00]} c6 {[%emt 0:00:00]} 2. d4 {[%emt 0:00:00]} d5 {[%emt 0:00:00]} 3. e5 {[%emt 0:00:00]} c5 {[%emt 0:00:00]} 4. dxc5 {[%emt 0:00:00]} Nc6 {[%emt 0:00:00]} 5. a3 {[%emt 0:00:00]} Nxe5 {[%emt 0:00:14]} 6. b4 {[%emt 0:00:00]} g6 {[%emt 0:00:20]} 7. Bb2 {[%emt 0:00:04]} Bg7 {[%emt 0:00:05]} 8. Nc3 {[%emt 0:00:07]} Nf6 {[%emt 0:04:24]} 9. f4 {[%emt 0:00:18]} Bg4 {[%emt 0:10:04]} 10. fxe5 {[%emt 0:00:11]} Bxd1 {[%emt 0:00:06]} 11. exf6 {[%emt 0:00:07]} Bxf6 {[%emt 0:00:06]} 12. Bb5+ {[%emt 0:00:06]} Kf8 {[%emt 0:00:07]} 13. Rxd1 {[%emt 0:00:05]} e6 {[%emt 0:10:32]} 14. Nh3 {[%emt 0:00:13]} a6 {[%emt 0:07:31]} 15. Be2 {[%emt 0:04:37]} b6 {[%emt 0:07:33]} 16. cxb6 {[%emt 0:15:01]} Qxb6 {[%emt 0:04:46]} 17. Na4 {[%emt 0:06:09]} Qd8 {[%emt 0:00:29]} 18. Bc1 {[%emt 0:04:38]} Be5 {[%emt 0:12:08]} 19. O-O {[%emt 0:02:59]} h6 {[%emt 0:04:42]} 20. c4 {[%emt 0:07:16]} Qc7 {[%emt 0:09:35]} 21. Nf4 {[%emt 0:07:38]} Kg8 {[%emt 0:07:34]} 22. Nc5 {[%emt 0:15:29]} d4 {[%emt 0:08:35]} 23. Bf3 {[%emt 0:06:45]} Bxf4 {[%emt 0:02:58]} 24. Bxf4 {[%emt 0:07:07]} Qxf4 {[%emt 0:00:04]} 25. Bxa8 {[%emt 0:00:06]} Qe3+ {[%emt 0:00:15]} 26. Kh1 {[%emt 0:04:37]} Qxa3 {[%emt 0:01:58]} 27. Rxd4 {[%emt 0:02:03]} Qxb4 {[%emt 0:01:14]} 28. Nd3 {[%emt 0:09:21]} Qb8 {[%emt 0:03:44]} 29. Bc6 {[%emt 0:02:31]} Rh7 {[%emt 0:04:14]} 30. c5 {[%emt 0:02:49]} f5 {[%emt 0:00:40]} 31. Bd7 {[%emt 0:00:21]} e5 {[%emt 0:00:42]} 32. Rd6 {[%emt 0:01:46]} Rxd7 {[%emt 0:00:38]} 33. Rxd7 {[%emt 0:00:08]} Qb5 {[%emt 0:00:35]} 34. Rd6 {[%emt 0:01:09]} Kf8 {[%emt 0:00:33]} 35. Rd1 {[%emt 0:01:36]} e4 {[%emt 0:00:16]} 36. Ne5 {[%emt 0:00:48]} e3 {[%emt 0:00:07]} 37. Nxg6+ {[%emt 0:01:40]} Kg7 {[%emt 0:00:03]} 38. Nf4 {[%emt 0:00:11]} e2 {[%emt 0:00:30]} 39. Nxe2 {[%emt 0:00:42]} Qxe2 {[%emt 0:00:41]} 40. c6 {[%emt 0:00:42]} f4 {[%emt 0:00:45]} 41. Rb1 {[%emt 0:08:10]} Kf7 {[%emt 0:02:30]} 42. Rd7+ {[%emt 0:10:26]} Kf6 {[%emt 0:15:46]} 43. c7 {[%emt 0:00:09]} Qc2 {[%emt 0:07:05]} 44. Rb6+ {[%emt 0:09:30]} Ke5 {[%emt 0:02:17]} 45. h3 {[%emt 0:00:22]} f3 {[%emt 0:01:39]} 46. Re7+ {[%emt 0:02:05]} Kd5 {[%emt 0:00:35]} 47. gxf3 {[%emt 0:01:54]} Qd1+ {[%emt 0:03:18]} 48. Kg2 {[%emt 0:00:29]} Qd2+ {[%emt 0:00:36]} 49. Kf1 {[%emt 0:00:28]} Qd1+ {[%emt 0:00:44]} 50. Kf2 {[%emt 0:00:09]} Qd2+ {[%emt 0:00:19]} 51. Re2 {[%emt 0:01:11]} Qd4+ {[%emt 0:00:13]} 52. Kg2 {[%emt 0:01:05]} Qg7+ {[%emt 0:00:23]} 53. Kh1 {[%emt 0:00:33]} Qxc7 {[%emt 0:00:31]} 54. Rbe6 {[%emt 0:00:36]} a5 {[%emt 0:00:39]} 55. R6e4 {[%emt 0:00:17]} Qc1+ {[%emt 0:01:28]} 56. Kg2 {[%emt 0:00:18]} Kd6 {[%emt 0:00:10]} 57. Re6+ {[%emt 0:00:22]} Kd7 {[%emt 0:00:05]} 58. Re7+ {[%emt 0:00:29]} Kd6 {[%emt 0:00:35]} 59. R7e4 {[%emt 0:00:30]} Qd1 {[%emt 0:01:08]} 60. Ra2 {[%emt 0:01:00]} Qc1 {[%emt 0:00:19]} 61. Raa4 {[%emt 0:00:21]} h5 {[%emt 0:00:29]} 62. h4 {[%emt 0:00:33]} Qb2+ {[%emt 0:00:25]} 63. Kg3 {[%emt 0:00:16]} Qg7+ {[%emt 0:00:43]} 64. Kh3 {[%emt 0:00:25]} Qd7+ {[%emt 0:00:14]} 65. Kh2 {[%emt 0:00:15]} Qf5 {[%emt 0:00:12]} 66. Red4+ {[%emt 0:00:46]} Kc6 {[%emt 0:00:27]} 67. Rf4 {[%emt 0:00:36]} Qc2+ {[%emt 0:00:12]} 68. Kh3 {[%emt 0:00:06]} Qd1 {[%emt 0:01:16]} 69. Rf6+ {[%emt 0:01:08]} Kb5 {[%emt 0:00:23]} 70. Re4 {[%emt 0:00:14]} Qd7+ {[%emt 0:00:27]} 71. Kh2 {[%emt 0:00:32]} Qc7+ {[%emt 0:00:27]} 72. Kh3 {[%emt 0:00:39]} Qd7+ {[%emt 0:00:05]} 73. Rfe6 {[%emt 0:00:16]} a4 {[%emt 0:00:22]} 74. Kg3 {[%emt 0:00:56]} a3 {[%emt 0:00:30]} 75. R6e5+ {[%emt 0:00:18]} Kb6 {[%emt 0:00:23]} 76. Re6+ {[%emt 0:00:35]} Kc5 {[%emt 0:00:25]} 77. R4e5+ {[%emt 0:00:32]} Kc4 {[%emt 0:00:23]} 78. Re4+ {[%emt 0:00:30]} Kc5 {[%emt 0:00:14]} 79. R4e5+ {[%emt 0:00:32]} Kc4 {[%emt 0:00:07]} 80. Re4+ {[%emt 0:01:07]} 1/2-1/2

[Event "Lueneburger Schachfestival IM 2019"]
[Site "Lueneburg"]
[Date "2019.08.10"]
[Round "9.1"]
[White "Knuedel, Torben"]
[Black "Chennaoui, Yasin"]
[Result "1-0"]
[ECO "B63"]
[WhiteElo "2151"]
[BlackElo "2092"]
[Annotator "NA"]
[PlyCount "69"]
[EventDate "2019.08.02"]
[EventType "tourn"]
[EventCountry "GER"]
[SourceTitle "playchess.com"]
[Source "ChessBase"]
[SourceQuality "1"]
[TimeControl "40/5400+30:1800+30"]

1. e4 {[%emt 0:00:00]} c5 {[%emt 0:00:00]} 2. Nf3 {[%emt 0:00:00]} Nc6 {[%emt 0:00:00]} 3. d4 {[%emt 0:00:00]} cxd4 {[%emt 0:00:00]} 4. Nxd4 {[%emt 0:00:00]} Nf6 {[%emt 0:00:00]} 5. Nc3 {[%emt 0:00:00]} d6 {[%emt 0:00:00]} 6. Bg5 {[%emt 0:00:00]} Qb6 {[%emt 0:00:00]} 7. Nb3 {[%emt 0:01:56]} e6 {[%emt 0:00:00]} 8. Qd2 {[%emt 0:01:10]} Be7 {[%emt 0:01:07]} 9. O-O-O {[%emt 0:02:07]} O-O {[%emt 0:00:46]} 10. Be2 {[%emt 0:10:57]} Rd8 {[%emt 0:02:07]} 11. f4 {[%emt 0:16:18]} h6 {[%emt 0:11:54]} 12. h4 {[%emt 0:01:47]} a5 {[%emt 0:13:28]} 13. a4 {[%emt 0:06:14]} Qb4 {[%emt 0:00:59]} 14. Qe3 {[%emt 0:02:03]} d5 {[%emt 0:09:46]} 15. exd5 {[%emt 0:10:31]} exd5 {[%emt 0:00:43]} 16. Bxf6 {[%emt 0:02:51]} Bxf6 {[%emt 0:00:01]} 17. Nxd5 {[%emt 0:06:59]} Rxd5 18. Rxd5 {[%emt 0:00:01]} Be6 {[%emt 0:00:15]} 19. Re5 {[%emt 0:23:00]} Bxb3 {[%emt 0:02:38]} 20. cxb3 {[%emt 0:00:24]} Nxe5 {[%emt 0:02:39]} 21. fxe5 {[%emt 0:00:08]} Re8 {[%emt 0:00:38]} 22. Qc3 {[%emt 0:04:42]} Qf4+ {[%emt 0:00:53]} 23. Kb1 {[%emt 0:00:21]} Bxe5 {[%emt 0:01:15]} 24. Qc4 {[%emt 0:01:12]} Qd2 {[%emt 0:03:01]} 25. Qc2 {[%emt 0:00:18]} Qe3 {[%emt 0:01:40]} 26. Bc4 {[%emt 0:01:12]} Rd8 {[%emt 0:01:32]} 27. Rf1 {[%emt 0:00:30]} Kh8 {[%emt 0:08:36]} 28. Rxf7 {[%emt 0:01:12]} Qe1+ {[%emt 0:00:45]} 29. Ka2 {[%emt 0:00:14]} Qxh4 {[%emt 0:01:16]} 30. Qf5 {[%emt 0:00:38]} Qd4 {[%emt 0:01:02]} 31. Rf8+ {[%emt 0:00:50]} Rxf8 {[%emt 0:00:02]} 32. Qxf8+ {[%emt 0:00:07]} Kh7 {[%emt 0:00:06]} 33. Qf5+ {[%emt 0:00:14]} g6 {[%emt 0:00:47]} 34. Qf7+ {[%emt 0:00:06]} Bg7 {[%emt 0:00:20]} 35. Qg8# {[%emt 0:09:28] Be5 Qe6} 1-0

[Event "Lueneburger Schachfestival IM 2019"]
[Site "Lueneburg"]
[Date "2019.08.10"]
[Round "9.2"]
[White "Aarav Dengla"]
[Black "Ertan, Can"]
[Result "0-1"]
[ECO "C80"]
[WhiteElo "2038"]
[BlackElo "2396"]
[Annotator "NA"]
[PlyCount "76"]
[EventDate "2019.08.02"]
[EventType "tourn"]
[EventCountry "GER"]
[SourceTitle "playchess.com"]
[Source "ChessBase"]
[SourceQuality "1"]
[TimeControl "40/5400+30:1800+30"]

1. e4 {[%emt 0:00:00]} e5 {[%emt 0:00:00]} 2. Nf3 {[%emt 0:00:00]} Nc6 {[%emt 0:00:00]} 3. Bb5 {[%emt 0:00:00]} a6 {[%emt 0:00:00]} 4. Ba4 {[%emt 0:00:00]} Nf6 {[%emt 0:00:00]} 5. O-O {[%emt 0:00:00]} Nxe4 {[%emt 0:00:00]} 6. d4 {[%emt 0:00:20]} b5 {[%emt 0:00:00]} 7. Bb3 {[%emt 0:00:03]} d5 {[%emt 0:00:00]} 8. dxe5 {[%emt 0:00:04]} Be6 {[%emt 0:00:03]} 9. Nbd2 {[%emt 0:02:09]} Nc5 {[%emt 0:00:06]} 10. c3 {[%emt 0:01:48]} d4 {[%emt 0:03:51]} 11. cxd4 {[%emt 0:01:49]} Nxd4 {[%emt 0:00:29]} 12. Nxd4 {[%emt 0:00:23]} Qxd4 {[%emt 0:00:06]} 13. Bxe6 {[%emt 0:01:26]} fxe6 {[%emt 0:02:34]} 14. Qf3 {[%emt 0:10:32]} Qd5 {[%emt 0:00:23]} 15. Qxd5 {[%emt 0:06:37]} exd5 {[%emt 0:00:04]} 16. Nb3 {[%emt 0:01:16]} O-O-O {[%emt 0:04:37]} 17. Nxc5 {[%emt 0:13:41]} Bxc5 {[%emt 0:00:05]} 18. Bd2 {[%emt 0:01:07]} Rhf8 {[%emt 0:04:08]} 19. Rac1 {[%emt 0:04:49]} Bb6 {[%emt 0:01:31]} 20. Bb4 {[%emt 0:02:27]} Rf5 {[%emt 0:01:23]} 21. e6 {[%emt 0:00:47]} Re8 {[%emt 0:01:56]} 22. e7 {[%emt 0:02:07]} d4 {[%emt 0:01:51]} 23. g4 {[%emt 0:19:21]} Rg5 {[%emt 0:00:53]} 24. h3 {[%emt 0:00:44]} a5 {[%emt 0:00:06]} 25. Bd2 {[%emt 0:02:45]} Re5 {[%emt 0:00:06]} 26. b4 {[%emt 0:12:25]} a4 {[%emt 0:01:15]} 27. Bf4 {[%emt 0:01:20]} Re2 {[%emt 0:04:36]} 28. Bg5 {[%emt 0:02:26]} h6 {[%emt 0:00:41]} 29. Bh4 {[%emt 0:01:25]} g5 {[%emt 0:00:06]} 30. Bg3 {[%emt 0:00:03]} d3 {[%emt 0:00:55]} 31. Rcd1 {[%emt 0:01:56]} d2 {[%emt 0:00:24]} 32. Kg2 {[%emt 0:00:05]} R8xe7 {[%emt 0:00:15]} 33. Kf3 {[%emt 0:00:35]} Bd4 {[%emt 0:00:48]} 34. a3 {[%emt 0:00:38]} Bb2 {[%emt 0:02:21]} 35. h4 {[%emt 0:00:15]} Bxa3 {[%emt 0:00:05]} 36. hxg5 {[%emt 0:00:28]} hxg5 {[%emt 0:00:05]} 37. Kg2 {[%emt 0:00:06]} Bxb4 {[%emt 0:00:13]} 38. Kg1 {[%emt 0:00:30]} Bc5 {[%emt 0:00:52]} 0-1

[Event "Lueneburger Schachfestival IM 2019"]
[Site "Lueneburg"]
[Date "2019.08.10"]
[Round "9.3"]
[White "Kahlert, Thomas"]
[Black "Carlstedt, Jonathan"]
[Result "1/2-1/2"]
[ECO "A41"]
[WhiteElo "2152"]
[BlackElo "2408"]
[Annotator "NA"]
[PlyCount "62"]
[EventDate "2019.08.02"]
[EventType "tourn"]
[EventCountry "GER"]
[SourceTitle "playchess.com"]
[Source "ChessBase"]
[SourceQuality "1"]
[TimeControl "40/5400+30:1800+30"]

1. Nf3 {[%emt 0:00:00]} g6 {[%emt 0:00:00]} 2. d4 {[%emt 0:00:00]} Bg7 {[%emt 0:00:00]} 3. c4 {[%emt 0:00:37]} d6 {[%emt 0:00:00]} 4. Nc3 {[%emt 0:00:06]} Bg4 {[%emt 0:00:33]} 5. e3 {[%emt 0:03:24]} c5 {[%emt 0:04:05]} 6. Be2 {[%emt 0:00:46]} cxd4 {[%emt 0:05:01]} 7. Nxd4 {[%emt 0:03:40]} Bxe2 {[%emt 0:02:55]} 8. Ndxe2 {[%emt 0:00:43]} Nd7 {[%emt 0:00:15]} 9. b3 {[%emt 0:03:37]} Ngf6 {[%emt 0:01:16]} 10. Bb2 {[%emt 0:00:44]} O-O {[%emt 0:00:06]} 11. O-O {[%emt 0:02:03]} a5 {[%emt 0:01:24]} 12. Qd2 {[%emt 0:03:47]} Nc5 {[%emt 0:04:00]} 13. Rfd1 {[%emt 0:03:43]} a4 {[%emt 0:01:59]} 14. Qc2 {[%emt 0:11:03]} Qa5 {[%emt 0:09:58]} 15. Rab1 {[%emt 0:02:19]} Qb4 {[%emt 0:09:33]} 16. Nf4 {[%emt 0:16:31]} axb3 {[%emt 0:07:47]} 17. axb3 {[%emt 0:00:19]} e6 {[%emt 0:02:15]} 18. Nb5 {[%emt 0:07:18]} Ra2 {[%emt 0:01:29]} 19. Nc3 {[%emt 0:08:07]} Ra6 {[%emt 0:00:13]} 20. Nb5 {[%emt 0:00:16]} Ra2 {[%emt 0:05:35]} 21. Nc3 {[%emt 0:02:06]} Rxb2 {[%emt 0:03:54]} 22. Rxb2 {[%emt 0:01:08]} Nfe4 {[%emt 0:00:33]} 23. Nxe4 {[%emt 0:03:24]} Nxe4 {[%emt 0:00:06]} 24. Qxe4 {[%emt 0:05:15]} Bxb2 {[%emt 0:00:17]} 25. Qc2 {[%emt 0:04:18]} Bf6 {[%emt 0:01:27]} 26. g3 {[%emt 0:00:29]} Rc8 {[%emt 0:01:18]} 27. Qd3 {[%emt 0:00:33]} Be5 {[%emt 0:00:18]} 28. Ne2 {[%emt 0:00:52]} Qa5 {[%emt 0:04:26]} 29. Nd4 {[%emt 0:02:06]} d5 {[%emt 0:01:49]} 30. Nf3 {[%emt 0:01:47]} dxc4 {[%emt 0:00:37]} 31. Qd7 {[%emt 0:03:04]} Rf8 {[%emt 0:06:48]} 1/2-1/2

[Event "Lueneburger Schachfestival IM 2019"]
[Site "Lueneburg"]
[Date "2019.08.10"]
[Round "9.4"]
[White "Schulze, Lara"]
[Black "Souleidis, Georgios"]
[Result "0-1"]
[ECO "B38"]
[WhiteElo "2253"]
[BlackElo "2426"]
[Annotator "NA"]
[PlyCount "128"]
[EventDate "2019.08.02"]
[EventType "tourn"]
[EventCountry "GER"]
[SourceTitle "playchess.com"]
[Source "ChessBase"]
[SourceQuality "1"]
[TimeControl "40/5400+30:1800+30"]

1. e4 {[%emt 0:00:00]} c5 {[%emt 0:00:00]} 2. Nf3 {[%emt 0:00:00]} Nc6 {[%emt 0:00:00]} 3. d4 {[%emt 0:00:00]} cxd4 {[%emt 0:00:00]} 4. Nxd4 {[%emt 0:00:00]} g6 {[%emt 0:00:00]} 5. c4 {[%emt 0:00:02]} Bg7 {[%emt 0:00:00]} 6. Be3 {[%emt 0:00:13]} Qb6 {[%emt 0:00:00]} 7. Nb5 {[%emt 0:01:25]} Qa5+ {[%emt 0:00:00]} 8. N1c3 {[%emt 0:03:59]} a6 {[%emt 0:14:36]} 9. Nd4 {[%emt 0:00:58]} Nf6 {[%emt 0:00:08]} 10. Nb3 {[%emt 0:03:36]} Qd8 {[%emt 0:04:42]} 11. Nd5 {[%emt 0:13:56]} Nxd5 {[%emt 0:00:05]} 12. cxd5 {[%emt 0:00:17]} Nb8 {[%emt 0:00:16]} 13. Qd2 {[%emt 0:01:48]} O-O {[%emt 0:02:54]} 14. h4 {[%emt 0:04:02]} e5 {[%emt 0:05:12]} 15. h5 {[%emt 0:08:33]} d6 {[%emt 0:00:31]} 16. hxg6 {[%emt 0:08:35]} fxg6 {[%emt 0:00:10]} 17. O-O-O {[%emt 0:00:54]} a5 {[%emt 0:04:04]} 18. Kb1 {[%emt 0:02:09]} a4 {[%emt 0:02:17]} 19. Na1 {[%emt 0:02:30]} a3 {[%emt 0:01:29]} 20. b3 {[%emt 0:00:27]} Nd7 {[%emt 0:00:10]} 21. Bc4 {[%emt 0:04:38]} Nf6 {[%emt 0:01:22]} 22. f3 {[%emt 0:00:55]} Nh5 {[%emt 0:03:10]} 23. Rh2 {[%emt 0:06:11]} Rf7 {[%emt 0:00:21]} 24. Nc2 {[%emt 0:00:51]} Nf4 {[%emt 0:18:23]} 25. Qb4 {[%emt 0:02:58]} h5 {[%emt 0:06:03]} 26. Nxa3 {[%emt 0:04:40]} h4 {[%emt 0:02:27]} 27. Nb5 {[%emt 0:01:57]} Bf8 {[%emt 0:00:07]} 28. Rdh1 {[%emt 0:05:54]} g5 {[%emt 0:00:26]} 29. Qe1 {[%emt 0:02:54]} Nh5 {[%emt 0:07:27]} 30. Qf2 {[%emt 0:04:23]} Ng3 {[%emt 0:00:20]} 31. Bb6 {[%emt 0:11:13]} Nxh1 {[%emt 0:05:38]} 32. Rxh1 {[%emt 0:00:02]} Qe7 {[%emt 0:01:06]} 33. Nc7 {[%emt 0:00:34]} Rb8 {[%emt 0:00:06]} 34. Ne6 {[%emt 0:00:26]} Bxe6 {[%emt 0:02:02]} 35. dxe6 {[%emt 0:00:04]} Rh7 {[%emt 0:02:39]} 36. Bd5 {[%emt 0:02:44]} Kh8 {[%emt 0:00:08]} 37. b4 {[%emt 0:01:48]} Qf6 {[%emt 0:00:09]} 38. g3 {[%emt 0:01:35]} Be7 {[%emt 0:03:36]} 39. g4 {[%emt 0:01:15]} h3 {[%emt 0:03:26]} 40. Qg3 {[%emt 0:00:30]} Qf4 {[%emt 0:05:35]} 41. Rxh3 {[%emt 0:30:35]} Qd2 {[%emt 0:33:50]} 42. Rxh7+ {[%emt 0:00:00]} Kxh7 {[%emt 0:00:00]} 43. Qh3+ {[%emt 0:00:00]} Kg7 {[%emt 0:00:00]} 44. Qh5 {[%emt 0:00:00]} Qxb4+ {[%emt 0:00:00]} 45. Bb3 {[%emt 0:00:00]} Rf8 {[%emt 0:00:00]} 46. Be3 {[%emt 0:00:00]} Rxf3 {[%emt 0:00:00]} 47. Bxg5 {[%emt 0:00:00]} Qxe4+ {[%emt 0:00:00]} 48. Bc2 {[%emt 0:00:00]} Qb4+ {[%emt 0:00:00]} 49. Bb3 {[%emt 0:00:00]} Rf1+ {[%emt 0:00:00]} 50. Kc2 {[%emt 0:00:00]} Rf2+ {[%emt 0:03:38]} 51. Kd1 {[%emt 0:00:00]} Rf1+ {[%emt 0:00:06]} 52. Ke2 {[%emt 0:00:00]} Qe1+ {[%emt 0:00:46]} 53. Kd3 {[%emt 0:00:00]} Rf3+ {[%emt 0:00:14]} 54. Kc2 {[%emt 0:00:00]} Qc3+ {[%emt 0:04:22]} 55. Kd1 {[%emt 0:00:00]} Rf1+ {[%emt 0:02:18]} 56. Ke2 {[%emt 0:00:00]} Qe1+ {[%emt 0:00:01]} 57. Kd3 {[%emt 0:00:00]} Rf3+ {[%emt 0:00:15]} 58. Kc2 {[%emt 0:00:00]} Qe2+ {[%emt 0:01:36]} 59. Bd2 {[%emt 0:00:00]} Qd3+ {[%emt 0:00:06]} 60. Kc1 {[%emt 0:00:00]} Rf1+ {[%emt 0:00:01]} 61. Bd1 {[%emt 0:00:00]} Qa3+ {[%emt 0:00:46]} 62. Kc2 {[%emt 0:00:00]} Qxa2+ {[%emt 0:00:14]} 63. Kd3 {[%emt 0:00:00]} Qxe6 {[%emt 0:00:57]} 64. Be2 {[%emt 0:00:00]} Rf8 {[%emt 0:01:45] Kd4} 0-1

[Event "Lueneburger Schachfestival IM 2019"]
[Site "Lueneburg"]
[Date "2019.08.10"]
[Round "9.5"]
[White "Stork, Oliver"]
[Black "Pubantz, Jan"]
[Result "0-1"]
[ECO "A13"]
[WhiteElo "2322"]
[BlackElo "2214"]
[Annotator "NA"]
[PlyCount "54"]
[EventDate "2019.08.02"]
[EventType "tourn"]
[EventCountry "GER"]
[SourceTitle "playchess.com"]
[Source "ChessBase"]
[SourceQuality "1"]
[TimeControl "40/5400+30:1800+30"]

1. c4 {[%emt 0:00:00]} Nf6 {[%emt 0:00:00]} 2. Nf3 {[%emt 0:00:00]} e6 {[%emt 0:00:00]} 3. g3 {[%emt 0:01:12]} d5 {[%emt 0:00:05]} 4. Bg2 {[%emt 0:00:05]} dxc4 {[%emt 0:01:09]} 5. O-O {[%emt 0:00:34]} a6 {[%emt 0:04:52]} 6. Qc2 {[%emt 0:07:05]} b5 {[%emt 0:12:32]} 7. a4 {[%emt 0:05:48]} Bb7 {[%emt 0:01:42]} 8. b3 {[%emt 0:08:48]} cxb3 {[%emt 0:01:14]} 9. Qxb3 {[%emt 0:00:08]} b4 {[%emt 0:07:08]} 10. d4 {[%emt 0:15:32]} c5 {[%emt 0:02:44]} 11. dxc5 {[%emt 0:06:04]} Bxc5 {[%emt 0:00:22]} 12. a5 {[%emt 0:04:06]} O-O {[%emt 0:02:59]} 13. Nbd2 {[%emt 0:01:48]} Nbd7 {[%emt 0:02:06]} 14. Nc4 {[%emt 0:04:34]} Rc8 {[%emt 0:07:30]} 15. Be3 {[%emt 0:12:29]} Bd5 {[%emt 0:07:35]} 16. Bxc5 {[%emt 0:02:13]} Rxc5 {[%emt 0:00:10]} 17. Nfd2 {[%emt 0:00:27]} Ne5 {[%emt 0:06:22]} 18. Rac1 {[%emt 0:11:35]} Qc7 {[%emt 0:12:47]} 19. Qxb4 {[%emt 0:06:42]} Nxc4 {[%emt 0:04:34]} 20. e4 {[%emt 0:01:02]} Rb8 {[%emt 0:02:20]} 21. Qc3 {[%emt 0:00:56]} Nxd2 {[%emt 0:00:43]} 22. Qxc5 {[%emt 0:00:12]} Qxc5 {[%emt 0:00:06]} 23. Rxc5 {[%emt 0:00:05]} Nxf1 {[%emt 0:00:18]} 24. exd5 {[%emt 0:00:27]} Nd2 {[%emt 0:00:15]} 25. dxe6 {[%emt 0:00:23]} Rb1+ {[%emt 0:00:27]} 26. Bf1 {[%emt 0:00:05]} Rxf1+ {[%emt 0:00:08]} 27. Kg2 {[%emt 0:00:03]} fxe6 {[%emt 0:00:15]} 0-1